Cogmind - Beta 12 @@@ ROGUE MODE // 2023.05.11 @ 22:57:48 Player: Mr Goldstein Result: Self-destructed Performance ------------- Evolutions (3) 1500 Regions Visited (10) 2000 Robots Destroyed (0) 0 Value Destroyed (0) 0 Prototype IDs (24) 480 Alien Tech Used (0) 0 Bonus (1928) 1928 TOTAL SCORE: 5908 Bonus ------- Pacifist 928 Entered Garrisons 200 Entered DSFs 500 Aligned with FarCom 300 Cogmind --------- Core Integrity 218/700 Matter 266/300 Energy 99/100 System Corruption 5% Temperature Cool (0) Movement Core (50) Location -7/Garrison Parts ------- > --- POWER (1) -------- (None) > --- PROPULSION (8) --- (None) > --- UTILITY (2) ------ Hacking Suite > --- WEAPON (2) ------- (None) > --- INVENTORY (5) ---- Improved Deuterium Engine Hacking Suite Hacking Suite Hacking Suite System Shield Peak State ------------ > --- POWER ------------ (None) > --- PROPULSION ------- (None) > --- UTILITY ---------- (None) > --- WEAPON ----------- YOLO Cannon > --- INVENTORY -------- Flight Unit [Rating: 20] Favorites ----------- Power Light Deuterium Engine Engine Light Deuterium Engine Propulsion Light Treads Treads Light Treads Wheel Wheel Flight Unit Improved Flight Unit Utility Hacking Suite Processor Improved Terrain Scan Processor Hackware Hacking Suite Weapon YOLO Cannon Energy Cannon YOLO Cannon Build | -11 -10 -10 -9 -9 -9 -8 -8 -7 -7 -7 ------- Run | Jun Mat Min Mat Min Exi Min Mat Fac DSF Gar Slots Evolved 6 | . . . 2 . . . 2 2 . . Power . | . . . . . . . . . . . Propulsion 6 | . . . 2 . . . 2 2 . . Utility . | . . . . . . . . . . . Weapon . | . . . . . . . . . . . Parts Attached 11 | 3 . . . . 2 . 5 . 1 . Power 1 | . . . . . . . 1 . . . Engine 1 | . . . . . . . 1 . . . Core . | . . . . . . . . . . . Reactor . | . . . . . . . . . . . Propulsion 6 | 3 . . . . 1 . 2 . . . Treads 2 | 2 . . . . . . . . . . Leg . | . . . . . . . . . . . Wheel 1 | 1 . . . . . . . . . . Hover . | . . . . . . . . . . . Flight 3 | . . . . . 1 . 2 . . . Utility 3 | . . . . . . . 2 . 1 . Device . | . . . . . . . . . . . Storage . | . . . . . . . . . . . Processor 1 | . . . . . . . 1 . . . Hackware 2 | . . . . . . . 1 . 1 . Protection . | . . . . . . . . . . . Artifact . | . . . . . . . . . . . Weapon 1 | . . . . . 1 . . . . . Energy Gun . | . . . . . . . . . . . Energy Cannon 1 | . . . . . 1 . . . . . Ballistic Gun . | . . . . . . . . . . . Ballistic Cannon . | . . . . . . . . . . . Launcher . | . . . . . . . . . . . Special Weapon . | . . . . . . . . . . . Impact Weapon . | . . . . . . . . . . . Slashing Weapon . | . . . . . . . . . . . Piercing Weapon . | . . . . . . . . . . . Special Melee Weapon . | . . . . . . . . . . . Unidentified Prototypes 1 | . . . . . . . 1 . . . Parts Lost 7 | . . . 1 1 . . 2 . 1 2 Power 1 | . . . . . . . 1 . . . Propulsion 5 | . . . 1 1 . . 1 . 1 1 Utility 1 | . . . . . . . . . . 1 Weapon . | . . . . . . . . . . . Highest Loss Streak 2 | . . . 1 1 . . 2 . 1 2 To Critical Strikes . | . . . . . . . . . . . Average Slot Usage (%) 19 | . 28 28 22 6 4 11 30 . 27 18 Treads 10 | . 28 28 22 6 . . . . . . Flight 4 | . . . . . 4 11 17 . 11 4 Processor 1 | . . . . . . . 9 . 4 . Hackware 2 | . . . . . . . 1 . 10 13 Naked Turns 101 | . . . . 35 66 . . . . . Heaviest Build 5 | . . . . . . . 5 . . . Greatest Support 40 | 40 3 3 3 3 4 4 14 10 10 5 Greatest Overweight (x) . | . . . . . . . . . . . Average Overweight (x) . | . . . . . . . . . . . Largest Inventory Capacity 5 | 5 5 5 5 5 5 5 5 5 5 5 Average Capacity 5 | 5 5 5 5 5 5 5 5 5 5 5 Most Carried 5 | . . . 1 1 5 2 4 4 5 5 Average Carried 1 | . . . . 1 1 2 2 4 4 5 Final Capacity 5 | 5 5 5 5 5 5 5 5 5 5 5 Final Carried 5 | . . . 1 1 2 2 4 4 5 5 Class Distribution -------------------- 82% | Mutant 14% | Hacker-Mutant 3% | Sprinter Dominant Class ---------------- Mutant | -10/Materials Mutant | -10/Mines Mutant | -9/Materials Mutant | -9/Mines Mutant | -9/Exiles Mutant | -8/Mines Mutant | -8/Materials Mutant | -7/Factory Mutant | -7/DSF Hacker-Mutant | -7/Garrison Resources | -11 -10 -10 -9 -9 -9 -8 -8 -7 -7 -7 ----------- Run | Jun Mat Min Mat Min Exi Min Mat Fac DSF Gar Matter Collected 215 | 196 . . . . . 19 . . . . Remotely . | . . . . . . . . . . . Salvage Created . | . . . . . . . . . . . Parts . | . . . . . . . . . . . Haulers Intercepted . | . . . . . . . . . . . Recyclers Shooed . | . . . . . . . . . . . Parts Field Recycled . | . . . . . . . . . . . Retrieved Matter . | . . . . . . . . . . . Parts Self-Destructed . | . . . . . . . . . . . Prevented . | . . . . . . . . . . . Kills | -11 -10 -10 -9 -9 -9 -8 -8 -7 -7 -7 ------- Run | Jun Mat Min Mat Min Exi Min Mat Fac DSF Gar Combat Hostiles Destroyed . | . . . . . . . . . . . Classes Destroyed . | . . . . . . . . . . . Best Kill Streak . | . . . . . . . . . . . Combat Bots Only . | . . . . . . . . . . . Max Kills in Single Turn . | . . . . . . . . . . . Gunslinging . | . . . . . . . . . . . Exploded . | . . . . . . . . . . . Melee . | . . . . . . . . . . . Uniques/NPCs Destroyed . | . . . . . . . . . . . Combat | -11 -10 -10 -9 -9 -9 -8 -8 -7 -7 -7 -------- Run | Jun Mat Min Mat Min Exi Min Mat Fac DSF Gar Damage Taken 1420 | . . 101 319 110 . 155 157 . 228 350 Core 943 | . . 65 102 80 . 138 76 . 191 291 Absorbed by Shields 19 | . . . . . . . . . 19 . Core Remaining (%) 70 | 100 . 74 . . . 20 86 . . . Volleys Fired . | . . . . . . . . . . . Largest . | . . . . . . . . . . . Hottest . | . . . . . . . . . . . Shots Fired . | . . . . . . . . . . . Gun . | . . . . . . . . . . . Cannon . | . . . . . . . . . . . Launcher . | . . . . . . . . . . . Special . | . . . . . . . . . . . Kinetic . | . . . . . . . . . . . Thermal . | . . . . . . . . . . . Explosive . | . . . . . . . . . . . Electromagnetic . | . . . . . . . . . . . Robot Hit Streak . | . . . . . . . . . . . Robot Miss Streak . | . . . . . . . . . . . Penetration Max . | . . . . . . . . . . . Secondary Targets . | . . . . . . . . . . . Shots Hit Robots . | . . . . . . . . . . . Core Hits . | . . . . . . . . . . . Critical Kills . | . . . . . . . . . . . Critical Parts Destroyed . | . . . . . . . . . . . Critical Strikes . | . . . . . . . . . . . Melee Attacks . | . . . . . . . . . . . Impact . | . . . . . . . . . . . Slashing . | . . . . . . . . . . . Piercing . | . . . . . . . . . . . Sneak Attacks . | . . . . . . . . . . . Combat Hostiles . | . . . . . . . . . . . Follow-up Attacks . | . . . . . . . . . . . Damage Inflicted 61 | . . 18 26 . . . . . . 17 Guns . | . . . . . . . . . . . Cannons . | . . . . . . . . . . . Explosions . | . . . . . . . . . . . Melee . | . . . . . . . . . . . Ramming 61 | . . 18 26 . . . . . . 17 Kinetic . | . . . . . . . . . . . Thermal . | . . . . . . . . . . . Explosive . | . . . . . . . . . . . Electromagnetic . | . . . . . . . . . . . Impact . | . . . . . . . . . . . Slashing . | . . . . . . . . . . . Piercing . | . . . . . . . . . . . Highest Corruption 5 | . . . . . . . . . . 5 Average Corruption 5 | . . . . . . . . . . 5 Corruption Purged . | . . . . . . . . . . . Corruption Blocked . | . . . . . . . . . . . Overload Shots . | . . . . . . . . . . . Overflow Damage . | . . . . . . . . . . . Projectiles . | . . . . . . . . . . . Explosions . | . . . . . . . . . . . Melee . | . . . . . . . . . . . Knockbacks . | . . . . . . . . . . . Impact . | . . . . . . . . . . . Kinetic . | . . . . . . . . . . . Secondary . | . . . . . . . . . . . Self-Inflicted Damage 34 | . . 8 12 . . . . . . 14 Shots . | . . . . . . . . . . . Rammed 12 | . . 5 6 . . . . . . 1 Targets Rammed 12 | . . 5 6 . . . . . . 1 Kicked . | . . . . . . . . . . . Crushed . | . . . . . . . . . . . Highest Temperature 14 | . . . . . . 12 14 . . . Average Temperature 7 | . . . . . . 12 5 . . . Received Heat Transfer 517 | . . 36 165 46 . 36 99 . 9 126 Siege Activations . | . . . . . . . . . . . Robots Corrupted . | . . . . . . . . . . . Combat Hostiles . | . . . . . . . . . . . Parts Fried . | . . . . . . . . . . . Impact Corruptions . | . . . . . . . . . . . Robots Melted . | . . . . . . . . . . . Combat Hostiles . | . . . . . . . . . . . Parts Melted . | . . . . . . . . . . . Heat Transferred . | . . . . . . . . . . . Parts Sabotaged . | . . . . . . . . . . . Parts Stolen . | . . . . . . . . . . . Parts Stripped . | . . . . . . . . . . . Power Chain Reactions . | . . . . . . . . . . . Missiles Intercepted . | . . . . . . . . . . . Alert | -11 -10 -10 -9 -9 -9 -8 -8 -7 -7 -7 ------- Run | Jun Mat Min Mat Min Exi Min Mat Fac DSF Gar Peak Influence 116 | . 15 20 112 74 . 30 116 43 45 76 Initial 43 | . . 5 7 39 . . 11 43 30 26 Average 33 | . 2 11 51 55 . 5 55 43 32 41 Maximum Alert Level . | . . . . . . . . . . . Low Security (%) 100 | 100 100 100 100 100 . 100 100 100 100 100 Level 1 . | . . . . . . . . . . . Level 2 . | . . . . . . . . . . . Level 3 . | . . . . . . . . . . . Level 4 . | . . . . . . . . . . . Level 5 . | . . . . . . . . . . . High Security . | . . . . . . . . . . . Max Security . | . . . . . . . . . . . Squads Dispatched 3 | . . . . . . . 2 . 1 . Investigation . | . . . . . . . . . . . Extermination . | . . . . . . . . . . . Reinforcement 3 | . . . . . . . 2 . 1 . Assault . | . . . . . . . . . . . Garrison . | . . . . . . . . . . . Intercept . | . . . . . . . . . . . Searches Triggered . | . . . . . . . . . . . Construction Impeded . | . . . . . . . . . . . Haulers Reinforced . | . . . . . . . . . . . Active Scanning Responses . | . . . . . . . . . . . Cargo Convoy Interrupts . | . . . . . . . . . . . Stealth | -11 -10 -10 -9 -9 -9 -8 -8 -7 -7 -7 --------- Run | Jun Mat Min Mat Min Exi Min Mat Fac DSF Gar Distress Signals 1 | . . . 1 . . . . . . . Communications Jammed . | . . . . . . . . . . . Distress Signals . | . . . . . . . . . . . Times Spotted 65 | . 1 2 14 21 . 2 14 . 2 9 Peak Tracking Total 21 | . 1 2 12 21 . 2 15 . 2 11 Tactical Retreats 5 | . . . 1 2 . . . . 1 1 Traps | -11 -10 -10 -9 -9 -9 -8 -8 -7 -7 -7 ------- Run | Jun Mat Min Mat Min Exi Min Mat Fac DSF Gar Traps Triggered 1 | . . . . . . . . . 1 . Indirectly . | . . . . . . . . . . . Trap Hack Attempts . | . . . . . . . . . . . Triggered . | . . . . . . . . . . . Disarmed . | . . . . . . . . . . . Reprogrammed . | . . . . . . . . . . . Reused . | . . . . . . . . . . . Traps Extracted . | . . . . . . . . . . . Installed . | . . . . . . . . . . . Triggered . | . . . . . . . . . . . Machines | -11 -10 -10 -9 -9 -9 -8 -8 -7 -7 -7 ---------- Run | Jun Mat Min Mat Min Exi Min Mat Fac DSF Gar Machines Disabled . | . . . . . . . . . . . Max in Single Turn . | . . . . . . . . . . . Machines Repaired . | . . . . . . . . . . . Machines Sabotaged . | . . . . . . . . . . . Overloaded Fab Kills . | . . . . . . . . . . . Hacking | -11 -10 -10 -9 -9 -9 -8 -8 -7 -7 -7 --------- Run | Jun Mat Min Mat Min Exi Min Mat Fac DSF Gar Machines Accessed 4 | . . . . . 1 . . 1 . 2 Terminals 3 | . . . . . . . . 1 . 2 Fabricators . | . . . . . . . . . . . Repair Stations . | . . . . . . . . . . . Recycling Units . | . . . . . . . . . . . Scanalyzers . | . . . . . . . . . . . Garrison Access . | . . . . . . . . . . . Total Hacks 7 | . . . . . 1 . . 2 . 4 Successful 3 | . . . . . 1 . . 1 . 1 Failed 4 | . . . . . . . . 1 . 3 Catastrophic . | . . . . . . . . . . . Database Lockouts . | . . . . . . . . . . . Manual 1 | . . . . . 1 . . . . . Terminals 6 | . . . . . . . . 2 . 4 Fabricators . | . . . . . . . . . . . Repair Stations . | . . . . . . . . . . . Recycling Units . | . . . . . . . . . . . Scanalyzers . | . . . . . . . . . . . Garrison Access . | . . . . . . . . . . . Terminal Hacks 3 | . . . . . 1 . . 1 . 1 Open DSF 1 | . . . . . . . . 1 . . Garrison Registry 1 | . . . . . . . . . . 1 EX-Prototype ID Bank 1 | . . . . . 1 . . . . . Fabricator Hacks . | . . . . . . . . . . . Repair Station Hacks . | . . . . . . . . . . . Recycling Unit Hacks . | . . . . . . . . . . . Scanalyzer . | . . . . . . . . . . . Garrison Access Hacks . | . . . . . . . . . . . Unauthorized Hacks . | . . . . . . . . . . . Terminals . | . . . . . . . . . . . Fabricators . | . . . . . . . . . . . Repair Stations . | . . . . . . . . . . . Recycling Units . | . . . . . . . . . . . Scanalyzers . | . . . . . . . . . . . Garrison Access . | . . . . . . . . . . . Data Cores Recovered . | . . . . . . . . . . . Used . | . . . . . . . . . . . Hacking Detections 3 | . . . . . . . . 1 . 2 Full Trace Events . | . . . . . . . . . . . Feedback Events . | . . . . . . . . . . . Feedback Blocked . | . . . . . . . . . . . Robot Schematics Acquired . | . . . . . . . . . . . Robots Built . | . . . . . . . . . . . Authchips . | . . . . . . . . . . . Time . | . . . . . . . . . . . Total Robot Build Rating . | . . . . . . . . . . . Part Schematics Acquired . | . . . . . . . . . . . Parts Built . | . . . . . . . . . . . Authchips . | . . . . . . . . . . . Time . | . . . . . . . . . . . Total Part Build Rating . | . . . . . . . . . . . Parts Repaired . | . . . . . . . . . . . Time . | . . . . . . . . . . . Parts Recycled . | . . . . . . . . . . . Recycled Matter . | . . . . . . . . . . . Retrieved Matter . | . . . . . . . . . . . Retrieved Components . | . . . . . . . . . . . Parts Scanalyzed . | . . . . . . . . . . . Part Schematics Acquired . | . . . . . . . . . . . Parts Damaged . | . . . . . . . . . . . Bothacking | -11 -10 -10 -9 -9 -9 -8 -8 -7 -7 -7 ------------ Run | Jun Mat Min Mat Min Exi Min Mat Fac DSF Gar Used RIF Installer . | . . . . . . . . . . . Robots Hacked . | . . . . . . . . . . . Non-combat . | . . . . . . . . . . . Combat . | . . . . . . . . . . . Robot Hacks Applied . | . . . . . . . . . . . Relay Couplers Released . | . . . . . . . . . . . Fabnet Peak Effective % . | . . . . . . . . . . . Robots Rewired . | . . . . . . . . . . . Allies Hacked . | . . . . . . . . . . . Hacks Repelled . | . . . . . . . . . . . Allies | -11 -10 -10 -9 -9 -9 -8 -8 -7 -7 -7 -------- Run | Jun Mat Min Mat Min Exi Min Mat Fac DSF Gar Total Allies . | . . . . . . . . . . . Largest Group . | . . . . . . . . . . . Highest-Rated Group . | . . . . . . . . . . . Highest-Rated Ally . | . . . . . . . . . . . Total Orders . | . . . . . . . . . . . Ally Attacks . | . . . . . . . . . . . Total Damage . | . . . . . . . . . . . Kills . | . . . . . . . . . . . Allies Corrupted . | . . . . . . . . . . . Allies Melted . | . . . . . . . . . . . Intel | -11 -10 -10 -9 -9 -9 -8 -8 -7 -7 -7 ------- Run | Jun Mat Min Mat Min Exi Min Mat Fac DSF Gar Robot Analysis Total . | . . . . . . . . . . . Derelict Logs Recovered 3 | . . 1 . 2 . . . . . . Drone Launches . | . . . . . . . . . . . Drone Recoveries . | . . . . . . . . . . . Exploration | -11 -10 -10 -9 -9 -9 -8 -8 -7 -7 -7 ------------- Run | Jun Mat Min Mat Min Exi Min Mat Fac DSF Gar Turns Passed 861 | 22 51 160 133 70 107 51 88 2 47 130 Spaces Moved 1678 | 23 101 309 251 140 225 127 219 6 91 186 Core 1006 | 17 101 309 251 140 126 . . . . 62 Treads 5 | 5 . . . . . . . . . . Legs . | . . . . . . . . . . . Wheels 1 | 1 . . . . . . . . . . Hover . | . . . . . . . . . . . Flight 666 | . . . . . 99 127 219 6 91 124 Fastest Speed 32 | 50 50 50 50 50 40 40 32 34 34 40 Average Speed 45 | 75 50 50 50 50 45 40 35 34 36 43 Slowest Speed 160 | 160 50 50 50 50 50 40 40 34 40 50 Overloaded Moves . | . . . . . . . . . . . Propulsion Burnouts . | . . . . . . . . . . . Robots Hopped 11 | . . . . . . . 9 . 1 1 Cave-ins Triggered . | . . . . . . . . . . . Exploration Rate (%) 42 | 3 25 67 40 52 61 35 35 . 76 27 Regions Visited 10 Branch Regions 4 Pre-discovered Areas . | . . . . . . . . . . . Known Exits Taken 2 | . . . . . . . 1 1 . . Unknown Exits Taken 7 | 1 1 1 1 1 1 1 . . . . Scrap Searched 3 | . . 1 . 1 . 1 . . . . Spaces Dug . | . . . . . . . . . . . Terrain Destroyed . | . . . . . . . . . . . Melee . | . . . . . . . . . . . Projectile . | . . . . . . . . . . . AOE . | . . . . . . . . . . . Terrain Rammed 1 | . . . . . . . . . . 1 Walls Destroyed . | . . . . . . . . . . . Machines Disabled . | . . . . . . . . . . . Actions | -11 -10 -10 -9 -9 -9 -8 -8 -7 -7 -7 --------- Run | Jun Mat Min Mat Min Exi Min Mat Fac DSF Gar Total 1748 | 26 100 313 257 139 229 126 216 5 104 233 Wait 47 | . . . . . . . . . . 47 Move 1646 | 22 100 308 250 139 224 126 201 5 88 183 Hop 10 | . . . . . . . 8 . 1 1 Pick Up 8 | . . . 1 . 1 . 2 . 4 . Fast Attach 10 | 3 . . . . 1 . 5 . 1 . Attach 1 | . . . . . 1 . . . . . Detach 1 | . . . . . 1 . . . . . Swap . | . . . . . . . . . . . Drop 5 | 1 . . . . 1 . . . 3 . Fire . | . . . . . . . . . . . Melee . | . . . . . . . . . . . Ram 13 | . . 5 6 . . . . . . 2 Kick . | . . . . . . . . . . . Crush . | . . . . . . . . . . . Escape Stasis 7 | . . . . . . . . . 7 . Rewire . | . . . . . . . . . . . Trap . | . . . . . . . . . . . Miscellaneous . | . . . . . . . . . . . Route ------- -11/Junkyard -10/Materials -10/Mines -9/Materials (discovered 2 exits: [*Mat] / [*Min]) -9/Mines (discovered 2 exits: [*Mat] / *Exi) -9/Exiles (discovered 2 exits: [*Min x2]) -8/Mines -8/Materials -7/Factory (discovered 2 exits: Sto / DSF) -7/DSF -7/Garrison (discovered 3 exits: [*Fac x3]) History --------- Turn | Location | Event 6 | -11/Junkyard | Discovered new exit (range 16) 23 | -11/Junkyard | Entered Materials 68 | -10/Materials | Discovered new exit (range 12) 74 | -10/Materials | Entered Mines 186 | -10/Mines | Learned Materials security intel 230 | -10/Mines | Discovered new exit (range 9) 234 | -10/Mines | Entered Materials 234 | -9/Materials | Evolved 2 slots: Propulsion x2 314 | -9/Materials | Build established: Mutant 330 | -9/Materials | Discovered new exit (range 13) 359 | -9/Materials | Discovered new exit (range 16) 367 | -9/Materials | Entered Mines 368 | -9/Mines | Learned 2 Materials zone layouts 389 | -9/Mines | Met a Derelict bent on vengeance 394 | -9/Mines | Assembled infested the area 430 | -9/Mines | Discovered new exit (range 10) 435 | -9/Mines | Deemed a non-threat by the Exiles lab entrance 435 | -9/Mines | Discovered new exit (range 5) 437 | -9/Mines | Entered Exiles 446 | -9/Exiles | Discovered new exit (range 15) 451 | -9/Exiles | Met 8R-AWN 459 | -9/Exiles | Met EX-HEX 474 | -9/Exiles | Met EX-BIN 480 | -9/Exiles | Aligned with FarCom system 480 | -9/Exiles | Given EX-Vault access code 492 | -9/Exiles | Opened EX-Vault 496 | -9/Exiles | Found XL Autogun Array 502 | -9/Exiles | Found YOLO Cannon 514 | -9/Exiles | Warned to stay clear of 0b10 Research branches 525 | -9/Exiles | Met EX-DEC 539 | -9/Exiles | Discovered new exit (range 14) 544 | -9/Exiles | Left Exiles lab with YOLO Cannon 544 | -9/Exiles | Entered Mines 578 | -8/Mines | Core integrity fell below 50% 593 | -8/Mines | Discovered new exit (range 5) 595 | -8/Mines | Entered Materials 595 | -8/Materials | Evolved 2 slots: Propulsion x2 596 | -8/Materials | Identified exit to Factory 683 | -8/Materials | Entered Factory 683 | -7/Factory | Evolved 2 slots: Propulsion x2 684 | -7/Factory | Identified exit to Storage 685 | -7/Factory | Identified exit to DSF 685 | -7/Factory | Entered DSF 713 | -7/DSF | Additional patrols routed to DSF 723 | -7/DSF | Discovered new exit (range 14) 732 | -7/DSF | Entered Garrison 738 | -7/Garrison | Discovered new exit (range 86) 738 | -7/Garrison | Discovered new exit (range 65) 738 | -7/Garrison | Discovered new exit (range 66) 822 | -7/Garrison | Triggered checkpoint 823 | -7/Garrison | Triggered checkpoint 826 | -7/Garrison | Triggered checkpoint 832 | -7/Garrison | Core integrity fell below 50% 862 | -7/Garrison | Attempted to access garrison exit controls, blocked by remote lockdown 862 | -7/Garrison | Self-destructed Last Messages --------------- 00732_ Receiving FarCom transmissions... 00738_ Connecting with Garrison Terminal... 00738_ Current location identified: Garrison 00738_ EXIT=FOUND >>Download(Registry) Retrieving Garrison registry... Downloaded map data. Downloaded component registry. Downloaded security status. 00822_ Beams of light sweep through the air. An alarm sounds. 00828_ Imp. Flight Unit destroyed. 00833_ Connecting with Garrison Terminal... 00839_ Slammed into RIF Installer. 00839_ Hacking Suite destroyed. 00839_ System corrupted by crushing effect (+5). 00839_ Destabilizing: Core damaged (-21). 00852_ RIF Installer disabled. 00853_ Slammed into P-60 Hacker. 00862_ Attempting to access garrison exit controls... 00862_ Remote lockdown engaged. Map ----- +----------------------------------------------------+ | ??????????????????#""""""""""#??????????### ## | | ??????????????????#"""!!!!"""#??########### ## | | ??????????????????#"" ""#??# | | ??????????????????#"! !"#??# | | ??????????????????#"! !"#??# ###+#### | | ??????????????????#"! !"#??# #?# #??## ## | | ??????????????????#"! !"#??# #?# #???# ## | | ??????????????????#"! !"#??# #?# #???# ## | | ??????????????????#"! !"#??# ### ##### #? | | ??????????????????#"" ""#??# ## + #? | | ??????????????????###### ####??# ## ###### #? | | ???????????????????????# ####### ##+##T### #? | | ???????????????????????# gg #? | | ???????????????????????# gggpg #? | | ???????????????????????# g### ### ###+######+##? | | ???????????????????????# ##^ ## #?# #????# #?? | | ???????????????????????# ## "## #?# #????# #?? | | ???????????????????????# ##" "## #?# #????# #?? | | ???????????????????????# ##" "## ###+#????# #?? | | ???????????????????????# ##"""## #????# #?? | | ???????????????????????# ########### #????# #?? | | ???????????????????????# #?????????# #????# #?? | | ???????????????????????# #?????????# #????# #?? | | ?????????????????????### #?????????# ###??# #?? | | ?????????????????????# #?????????# "g#### #?? | | ?????????????????????# @ #?????????# " + #?? | | ?????????????????????# #?????????# "g######?? | | ?????????????????????######?????????# ###??????? | | ??????????????????????????????####### #????????? | | ??????????????????????????????# #????????? | | ??????????????????????????????## ####????????? | | ??????????????????????????????#"""""#??????????? | | ??????????????????????????????#######??????????? | | ???????????????????????????????????????????????? | | ???????????????????????????????????????????????? | | ???????????????????????????????????????????????? | | ???????????????????????????????????????????????? | | ???????????????????????????????????????????????? | | ???????????????????????????????????????????????? | | ???????????????????????????????????????????????? | | ???????????????????????????????????????????????? | | ???????????????????????????????????????????????? | | ???????????????????????????????????????????????? | | ???????????????????????????????????????????????? | | ???????????????????????????????????????????????? | | ???????????????????????????????????????????????? | | ???????????????????????????????????????????????? | | ???????????????????????????????????????????????? | | | | | +----------------------------------------------------+ Best States ------------- Heat Dissipation 34 Energy Generation 14 Energy Capacity 140 Matter Stores 300 Matter Capacity 300 Sight Range 16 Terrain Scan Density 110 Evasion (%) 63 Recoil Reduction 2 Offensive Hacking 20 Item Schematics ----------------- None Robot Schematics ------------------ None Fabricated ------------ Nothing Alien Tech Used ----------------- None Achievements -------------- None Challenges ------------ None Game ------ Seed ArmoredDimensionalRigger Manual? 0 Play Time 00:12:47 Cumulative 198.3 hours Start 2023.05.11 @ 22:47:32 End 2023.05.11 @ 22:57:48 Sessions 1 Manual Loads 0 Difficulty Rogue Special Mode None Game No. 563 Rogue 563 Adventurer 0 Explorer 0 Win Type - Total 9 Types 7/0/1/1/0/0/0/0/0 Lore% 79 Gallery% 77 Achievement% 70 Wizard Run 0 Options --------- ASCII 0 Keyboard 0 Movement Numpad Keybinds 0 Fullscreen 1 Font 16/SmallcapsGlow Map View 75x55 Tactical HUD 1 Map Filters NONE Filters NONE Steam 1 RUN: 357a0a7c-6f1a-4f22-ac6d-be65ace483dd